Department Family,Entity,Payment Date,Expense Type,Expense Area,Supplier,Transaction Number,Amount,Description
MOJ,NOMS,08/01/2013,Contracted-out Catering Services,Holme House,ESS SUPPORT SERVICES WORLDWIDE,4720387,"50,218.92",Catering services 
MOJ,NOMS,22/01/2013,Contracted-out Catering Services,Hewell,ARAMARK LTD,4785507,"27,397.02",Catering services 
MOJ,NOMS,28/01/2013,Contracted-out Catering Services,Holme House,ESS SUPPORT SERVICES WORLDWIDE,4768670,"44,939.65",Catering services 
MOJ,NOMS,30/01/2013,Contracted-out Catering Services,Woodhill,ARAMARK LTD,4784884,"25,747.66",Catering services 
MOJ,NOMS,30/01/2013,Staff compensation and associated legal costs payments,Hewell,TREASURY SOLICITORS,4799895,"37,000.00",Compensation and associated legal costs payments in respect of staff litigation
MOJ,NOMS,14/01/2013,Prisoner compensation and associated legal costs payments,Director PSP Front Line Centrally Managed,TREASURY SOLICITORS,4775174,"32,000.00",Compensation and associated legal costs payments in respect of prisoner litigation
MOJ,NOMS,02/01/2013,Contracted-out Computer Services,MoJ ICT,MINISTRY OF JUSTICE,4725507,"6,514,810.33",Computer services 
MOJ,NOMS,02/01/2013,Contracted-out Computer Services,Performance Analysis Group,MOUCHEL MANAGEMENT CONSULTING LTD,4762108,"104,057.40",Computer services 
MOJ,NOMS,25/01/2013,Contracted-out Computer Services,NOMS ICT,HP ENTERPRISE SERVICES UK LTD,4469368,"59,283.20",Computer services 
MOJ,NOMS,25/01/2013,Contracted-out Computer Services,NOMS ICT,HP ENTERPRISE SERVICES UK LTD,4504773,"36,472.79",Computer services 
MOJ,NOMS,25/01/2013,Contracted-out Computer Services,NOMS ICT,HP ENTERPRISE SERVICES UK LTD,4551978,"29,980.99",Computer services 
MOJ,NOMS,14/01/2013,Consultancy,Estates Capacity,VALUATION OFFICE AGENCY,4773955,"33,392.40",Consultancy services
MOJ,NOMS,28/01/2013,Counselling & Advisory Costs,Feltham,LONDON BOROUGH OF HOUNSLOW,4786497,"31,399.13",Drug intervention services for prisoners
MOJ,NOMS,30/01/2013,Counselling & Advisory Costs,Erlestoke and Shepton Mallet,AVON & WILTSHIRE MENTAL HEALTH PARTNERSHIP N H S TRUST,4800541,"37,407.00",Drug intervention services for prisoners
MOJ,NOMS,11/01/2013,Contracted-out Education,Dover,PERTEMPS PEOPLE DEVELOPMENT GROUP,4773679,"26,859.93",Education services 
MOJ,NOMS,14/01/2013,Contracted-out Education,Morton Hall,LINCOLN COLLEGE,4764310,"30,957.00",Education services 
MOJ,NOMS,14/01/2013,Contracted-out Education,Morton Hall,LINCOLN COLLEGE,4774312,"25,973.00",Education services 
MOJ,NOMS,15/01/2013,Contracted-out Education,Dover,PERTEMPS PEOPLE DEVELOPMENT GROUP,4777780,"26,859.93",Education services 
MOJ,NOMS,21/01/2013,Electricity,Acklington,EDF ENERGY,4775183,"49,982.41",Electricity utility costs
MOJ,NOMS,21/01/2013,Electricity,Belmarsh,EDF ENERGY,4775183,"49,867.84",Electricity utility costs
MOJ,NOMS,21/01/2013,Electricity,Birmingham,EDF ENERGY,4775183,"44,606.34",Electricity utility costs
MOJ,NOMS,21/01/2013,Electricity,Chelmsford,EDF ENERGY,4775183,"26,298.11",Electricity utility costs
MOJ,NOMS,21/01/2013,Electricity,Dartmoor,EDF ENERGY,4775183,"29,161.81",Electricity utility costs
MOJ,NOMS,21/01/2013,Electricity,Durham,EDF ENERGY,4775183,"28,449.05",Electricity utility costs
MOJ,NOMS,21/01/2013,Electricity,Erlestoke and Shepton Mallet,EDF ENERGY,9550366,"29,122.33",Electricity utility costs
MOJ,NOMS,21/01/2013,Electricity,Feltham,EDF ENERGY,4775183,"43,116.85",Electricity utility costs
MOJ,NOMS,21/01/2013,Electricity,Frankland,EDF ENERGY,4775183,"50,243.96",Electricity utility costs
MOJ,NOMS,21/01/2013,Electricity,Full Sutton,EDF ENERGY,4775183,"36,378.41",Electricity utility costs
MOJ,NOMS,21/01/2013,Electricity,Gartree,EDF ENERGY,4775183,"25,586.88",Electricity utility costs
MOJ,NOMS,21/01/2013,Electricity,Haverigg,EDF ENERGY,4775183,"25,083.30",Electricity utility costs
MOJ,NOMS,21/01/2013,Electricity,Hewell,EDF ENERGY,4775183,"39,877.08",Electricity utility costs
MOJ,NOMS,21/01/2013,Electricity,Highdown,EDF ENERGY,4775183,"47,527.13",Electricity utility costs
MOJ,NOMS,21/01/2013,Electricity,Highpoint,EDF ENERGY,9550366,"48,640.44",Electricity utility costs
MOJ,NOMS,21/01/2013,Electricity,Hindley,EDF ENERGY,4775183,"26,188.87",Electricity utility costs
MOJ,NOMS,21/01/2013,Electricity,Holme House,EDF ENERGY,4775183,"32,286.10",Electricity utility costs
MOJ,NOMS,21/01/2013,Electricity,Hull,EDF ENERGY,4775183,"29,376.74",Electricity utility costs
MOJ,NOMS,21/01/2013,Electricity,Isle of Wight,EDF ENERGY,19100732,"53,514.78",Electricity utility costs
MOJ,NOMS,21/01/2013,Electricity,Kirkham,EDF ENERGY,4775183,"29,700.48",Electricity utility costs
MOJ,NOMS,21/01/2013,Electricity,Leeds,EDF ENERGY,4775183,"33,197.29",Electricity utility costs
MOJ,NOMS,21/01/2013,Electricity,Lincoln,EDF ENERGY,4775183,"25,320.05",Electricity utility costs
MOJ,NOMS,21/01/2013,Electricity,Lindholme,EDF ENERGY,4775183,"78,886.42",Electricity utility costs
MOJ,NOMS,21/01/2013,Electricity,Littlehey,EDF ENERGY,4775183,"33,905.35",Electricity utility costs
MOJ,NOMS,21/01/2013,Electricity,Liverpool,EDF ENERGY,4775183,"42,582.94",Electricity utility costs
MOJ,NOMS,21/01/2013,Electricity,Long Lartin,EDF ENERGY,4775183,"32,350.21",Electricity utility costs
MOJ,NOMS,21/01/2013,Electricity,Manchester,EDF ENERGY,4775183,"49,139.36",Electricity utility costs
MOJ,NOMS,21/01/2013,Electricity,Mount (The),EDF ENERGY,4775183,"32,744.56",Electricity utility costs
MOJ,NOMS,21/01/2013,Electricity,Nottingham,EDF ENERGY,4775183,"26,588.51",Electricity utility costs
MOJ,NOMS,21/01/2013,Electricity,Pentonville,EDF ENERGY,4775183,"34,956.42",Electricity utility costs
MOJ,NOMS,21/01/2013,Electricity,Ranby,EDF ENERGY,4775183,"40,475.51",Electricity utility costs
MOJ,NOMS,21/01/2013,Electricity,Risley,EDF ENERGY,4775183,"40,207.12",Electricity utility costs
MOJ,NOMS,21/01/2013,Electricity,Rochester,EDF ENERGY,4775183,"31,549.27",Electricity utility costs
MOJ,NOMS,21/01/2013,Electricity,Sheppey Clustered Services,EDF ENERGY,4775183,"59,016.98",Electricity utility costs
MOJ,NOMS,21/01/2013,Electricity,Stocken,EDF ENERGY,4775183,"29,329.48",Electricity utility costs
MOJ,NOMS,21/01/2013,Electricity,Swaleside,EDF ENERGY,4775183,"43,908.95",Electricity utility costs
MOJ,NOMS,21/01/2013,Electricity,Wakefield,EDF ENERGY,4775183,"35,220.47",Electricity utility costs
MOJ,NOMS,21/01/2013,Electricity,Wandsworth,EDF ENERGY,4775183,"42,489.48",Electricity utility costs
MOJ,NOMS,21/01/2013,Electricity,Wayland,EDF ENERGY,4775183,"30,972.30",Electricity utility costs
MOJ,NOMS,21/01/2013,Electricity,Wealstun,EDF ENERGY,4775183,"29,006.32",Electricity utility costs
MOJ,NOMS,21/01/2013,Electricity,Whatton,EDF ENERGY,4775183,"25,512.70",Electricity utility costs
MOJ,NOMS,21/01/2013,Electricity,Whitemoor,EDF ENERGY,4775183,"27,807.94",Electricity utility costs
MOJ,NOMS,21/01/2013,Electricity,Woodhill,EDF ENERGY,4775183,"27,088.37",Electricity utility costs
MOJ,NOMS,21/01/2013,Electricity,Wormwood Scrubs,EDF ENERGY,4775183,"33,398.35",Electricity utility costs
MOJ,NOMS,21/01/2013,Electricity,Wymott,EDF ENERGY,4775183,"84,075.11",Electricity utility costs
MOJ,NOMS,22/01/2013,Contracted-out Electronic Monitoring,Electronic Monitoring,SERCO LTD,4785058,"4,025,485.32",Electronic monitoring services 
MOJ,NOMS,24/01/2013,Contracted-out Electronic Monitoring,Electronic Monitoring,G4S CARE & JUSTICE SERVICES LTD,4785059,"4,714,103.66",Electronic monitoring services 
MOJ,NOMS,02/01/2013,WIP - Acquisitions,Estates Capacity,LEND LEASE CONSTRUCTION (EMEA) LTD,4761501,"263,544.00",Enhancement to buildings
MOJ,NOMS,03/01/2013,WIP - Acquisitions,Estates Capacity,KIER CONSTRUCTION LTD,4754710,"155,691.60",Enhancement to buildings
MOJ,NOMS,03/01/2013,WIP - Acquisitions,Estates Capacity,KIER CONSTRUCTION LTD,DM12060022,"-155,691.60",Enhancement to buildings
MOJ,NOMS,08/01/2013,WIP - Acquisitions,Estates Capacity,VINCI CONSTRUCTION UK LTD,4760990,"211,515.60",Enhancement to buildings
MOJ,NOMS,08/01/2013,WIP - Acquisitions,Estates Capacity,VINCI CONSTRUCTION UK LTD,4748778,"106,567.20",Enhancement to buildings
MOJ,NOMS,09/01/2013,WIP - Acquisitions,Estates Capacity,VINCI CONSTRUCTION UK LTD,4759219,"330,472.80",Enhancement to buildings
MOJ,NOMS,09/01/2013,WIP - Acquisitions,Estates Capacity,GALLIFORD TRY CONSTRUCTION LTD,4770899,"166,837.16",Enhancement to buildings
MOJ,NOMS,09/01/2013,WIP - Acquisitions,Estates Capacity,VINCI CONSTRUCTION UK LTD,4760992,"40,800.00",Enhancement to buildings
MOJ,NOMS,10/01/2013,WIP - Acquisitions,Estates Capacity,INTERSERVE CONSTRUCTION LTD,4738902,"843,229.60",Enhancement to buildings
MOJ,NOMS,10/01/2013,WIP - Acquisitions,Estates Capacity,KIER CONSTRUCTION LTD,4757929,"233,427.16",Enhancement to buildings
MOJ,NOMS,10/01/2013,WIP - Acquisitions,Estates Capacity,ISG CONSTRUCTION LTD,4757429,"143,972.40",Enhancement to buildings
MOJ,NOMS,11/01/2013,WIP - Acquisitions,Estates Capacity,ISG CONSTRUCTION LTD,4760988,"86,199.60",Enhancement to buildings
MOJ,NOMS,11/01/2013,WIP - Acquisitions,Estates Capacity,WATES CONSTRUCTION LTD,4773982,"71,440.19",Enhancement to buildings
MOJ,NOMS,14/01/2013,WIP - Acquisitions,Estates Capacity,INTERSERVE CONSTRUCTION LTD,4774857,"728,076.00",Enhancement to buildings
MOJ,NOMS,14/01/2013,WIP - Acquisitions,Estates Capacity,INTERSERVE CONSTRUCTION LTD,4774071,"506,378.96",Enhancement to buildings
MOJ,NOMS,14/01/2013,WIP - Acquisitions,Estates Capacity,INTERSERVE CONSTRUCTION LTD,4773985,"361,326.74",Enhancement to buildings
MOJ,NOMS,14/01/2013,WIP - Acquisitions,Estates Capacity,INTERSERVE CONSTRUCTION LTD,4774665,"321,018.72",Enhancement to buildings
MOJ,NOMS,14/01/2013,WIP - Acquisitions,Estates Capacity,KIER CONSTRUCTION LTD,4774002,"142,441.20",Enhancement to buildings
MOJ,NOMS,15/01/2013,WIP - Acquisitions,Estates Capacity,KIER CONSTRUCTION LTD,4777626,"294,000.00",Enhancement to buildings
MOJ,NOMS,15/01/2013,WIP - Acquisitions,Estates Capacity,VINCI CONSTRUCTION UK LTD,4777336,"102,700.80",Enhancement to buildings
MOJ,NOMS,16/01/2013,WIP - Acquisitions,Estates Capacity,INTERSERVE CONSTRUCTION LTD,4779985,"390,703.20",Enhancement to buildings
MOJ,NOMS,21/01/2013,WIP - Acquisitions,Estates Capacity,INTERSERVE CONSTRUCTION LTD,4779117,"1,085,318.45",Enhancement to buildings
MOJ,NOMS,21/01/2013,WIP - Acquisitions,Estates Capacity,LEND LEASE CONSTRUCTION (EMEA) LTD,4783720,"243,272.40",Enhancement to buildings
MOJ,NOMS,21/01/2013,WIP - Acquisitions,Estates Capacity,KIER CONSTRUCTION LTD,4781076,"138,000.00",Enhancement to buildings
MOJ,NOMS,21/01/2013,WIP - Acquisitions,Estates Capacity,INTERSERVE CONSTRUCTION LTD,4784200,"116,400.00",Enhancement to buildings
MOJ,NOMS,22/01/2013,WIP - Acquisitions,Estates Capacity,KIER CONSTRUCTION LTD,4785425,"64,159.69",Enhancement to buildings
MOJ,NOMS,23/01/2013,WIP - Acquisitions,Estates Capacity,WATES CONSTRUCTION LTD,4789158,"466,554.00",Enhancement to buildings
MOJ,NOMS,23/01/2013,WIP - Acquisitions,Estates Capacity,LEND LEASE CONSTRUCTION (EMEA) LTD,4786582,"230,212.80",Enhancement to buildings
MOJ,NOMS,25/01/2013,WIP - Acquisitions,Estates Capacity,INTERSERVE CONSTRUCTION LTD,4776798,"345,616.34",Enhancement to buildings
MOJ,NOMS,29/01/2013,WIP - Acquisitions,Estates Capacity,KIER CONSTRUCTION LTD,4781840,"395,828.41",Enhancement to buildings
MOJ,NOMS,29/01/2013,WIP - Acquisitions,Estates Capacity,LORNE STEWART PLC,4776495,"275,287.20",Enhancement to buildings
MOJ,NOMS,29/01/2013,WIP - Acquisitions,Estates Capacity,KIER CONSTRUCTION LTD,4784636,"60,000.00",Enhancement to buildings
MOJ,NOMS,30/01/2013,WIP - Acquisitions,Estates Capacity,LORNE STEWART PLC,4759887,"168,684.74",Enhancement to buildings
MOJ,NOMS,30/01/2013,WIP - Acquisitions,Estates Capacity,SHEPHERD CONSTRUCTION LTD,4788421,"108,490.58",Enhancement to buildings
MOJ,NOMS,30/01/2013,WIP - Acquisitions,Estates Capacity,INTERSERVE CONSTRUCTION LTD,4798420,"101,568.00",Enhancement to buildings
MOJ,NOMS,08/01/2013,Structural works / maintenance - Fees & professional services,Estates Capacity,WATES CONSTRUCTION LTD,4741876,"40,382.21",Fees for professional services for major maintenance on prison estate
MOJ,NOMS,09/01/2013,Structural works / maintenance - Fees & professional services,Estates Capacity,FAITHFUL & GOULD,4757083,"55,469.77",Fees for professional services for major maintenance on prison estate
MOJ,NOMS,16/01/2013,Professional works advice / services,Isis,MITIE JUSTICE LTD,4780003,"27,643.22",Fees for professional services for major maintenance on prison estate
MOJ,NOMS,23/01/2013,Professional works advice / services,Brixton,MITIE JUSTICE LTD,4780001,"29,595.88",Fees for professional services for major maintenance on prison estate
MOJ,NOMS,23/01/2013,Professional works advice / services,Brixton,MITIE JUSTICE LTD,4748203,"29,595.88",Fees for professional services for major maintenance on prison estate
MOJ,NOMS,24/01/2013,Structural works / maintenance - Fees & professional services,Estates Capacity,HLN ARCHITECTS LTD,4704392,"29,139.13",Fees for professional services for major maintenance on prison estate
MOJ,NOMS,02/01/2013,Other Fuels,Coldingley,HARVEST ENERGY LTD,4761234,"27,276.48",Fuel utility costs
MOJ,NOMS,04/01/2013,Other Fuels,Coldingley,HARVEST ENERGY LTD,4734756,"28,315.63",Fuel utility costs
MOJ,NOMS,07/01/2013,Other Fuels,Coldingley,HARVEST ENERGY LTD,4767652,"27,056.16",Fuel utility costs
MOJ,NOMS,08/01/2013,Other Fuels,Sudbury,HARVEST ENERGY LTD,4770571,"27,497.06",Fuel utility costs
MOJ,NOMS,11/01/2013,Other Fuels,Transport Group,HARVEST ENERGY LTD,4770572,"26,638.40",Fuel utility costs
MOJ,NOMS,16/01/2013,Other Fuels,Wayland,COAL 4 ENERGY LTD,9534936,"32,883.51",Fuel utility costs
MOJ,NOMS,24/01/2013,Other Fuels,Transport Group,HARVEST ENERGY LTD,4790910,"27,029.11",Fuel utility costs
MOJ,NOMS,09/01/2013,Gas,Lewes,COFATHEC ENERGY SERVICES UK LTD,4768185,"59,568.16",Gas utility costs
MOJ,NOMS,25/01/2013,Gas,Acklington,CORONA ENERGY RETAIL 4 LTD,4785484,"83,893.91",Gas utility costs
MOJ,NOMS,25/01/2013,Gas,Aylesbury,CORONA ENERGY RETAIL 4 LTD,4785484,"40,973.38",Gas utility costs
MOJ,NOMS,25/01/2013,Gas,Belmarsh,CORONA ENERGY RETAIL 4 LTD,4785484,"55,185.71",Gas utility costs
MOJ,NOMS,25/01/2013,Gas,Brinsford,CORONA ENERGY RETAIL 4 LTD,4785484,"31,739.89",Gas utility costs
MOJ,NOMS,25/01/2013,Gas,Bristol,CORONA ENERGY RETAIL 4 LTD,4785484,"33,032.12",Gas utility costs
MOJ,NOMS,25/01/2013,Gas,Brixton,CORONA ENERGY RETAIL 4 LTD,4785484,"36,258.86",Gas utility costs
MOJ,NOMS,25/01/2013,Gas,Bullingdon,CORONA ENERGY RETAIL 4 LTD,4785484,"59,075.39",Gas utility costs
MOJ,NOMS,25/01/2013,Gas,Cardiff,CORONA ENERGY RETAIL 4 LTD,4785484,"25,698.70",Gas utility costs
MOJ,NOMS,25/01/2013,Gas,Channings Wood,CORONA ENERGY RETAIL 4 LTD,4785484,"54,214.07",Gas utility costs
MOJ,NOMS,25/01/2013,Gas,Durham,CORONA ENERGY RETAIL 4 LTD,4785484,"31,447.36",Gas utility costs
MOJ,NOMS,25/01/2013,Gas,Everthorpe,CORONA ENERGY RETAIL 4 LTD,4785484,"37,571.51",Gas utility costs
MOJ,NOMS,25/01/2013,Gas,Featherstone,CORONA ENERGY RETAIL 4 LTD,4785484,"57,944.33",Gas utility costs
MOJ,NOMS,25/01/2013,Gas,Feltham,CORONA ENERGY RETAIL 4 LTD,4785484,"69,168.46",Gas utility costs
MOJ,NOMS,25/01/2013,Gas,Ford,CORONA ENERGY RETAIL 4 LTD,4785484,"36,901.74",Gas utility costs
MOJ,NOMS,25/01/2013,Gas,G4S Birmingham,CORONA ENERGY RETAIL 4 LTD,4785484,"70,765.64",Gas utility costs
MOJ,NOMS,25/01/2013,Gas,Garth,CORONA ENERGY RETAIL 4 LTD,4785484,"42,506.96",Gas utility costs
MOJ,NOMS,25/01/2013,Gas,Gartree,CORONA ENERGY RETAIL 4 LTD,4785484,"40,399.03",Gas utility costs
MOJ,NOMS,25/01/2013,Gas,Glen Parva,CORONA ENERGY RETAIL 4 LTD,4785484,"53,523.88",Gas utility costs
MOJ,NOMS,25/01/2013,Gas,Grendon,CORONA ENERGY RETAIL 4 LTD,4785484,"43,166.10",Gas utility costs
MOJ,NOMS,25/01/2013,Gas,Haverigg,CORONA ENERGY RETAIL 4 LTD,4785484,"39,100.91",Gas utility costs
MOJ,NOMS,25/01/2013,Gas,Hewell,CORONA ENERGY RETAIL 4 LTD,4785484,"67,123.58",Gas utility costs
MOJ,NOMS,25/01/2013,Gas,Highdown,CORONA ENERGY RETAIL 4 LTD,4785484,"59,496.34",Gas utility costs
MOJ,NOMS,25/01/2013,Gas,Highpoint,CORONA ENERGY RETAIL 4 LTD,4785484,"71,907.78",Gas utility costs
MOJ,NOMS,25/01/2013,Gas,Hindley,CORONA ENERGY RETAIL 4 LTD,4785484,"30,118.15",Gas utility costs
MOJ,NOMS,25/01/2013,Gas,Holloway,CORONA ENERGY RETAIL 4 LTD,4785484,"28,211.99",Gas utility costs
MOJ,NOMS,25/01/2013,Gas,Holme House,CORONA ENERGY RETAIL 4 LTD,4785484,"73,824.86",Gas utility costs
MOJ,NOMS,25/01/2013,Gas,Isle of Wight,CORONA ENERGY RETAIL 4 LTD,9570968,"35,266.89",Gas utility costs
MOJ,NOMS,25/01/2013,Gas,Kirkham,CORONA ENERGY RETAIL 4 LTD,4785484,"33,923.43",Gas utility costs
MOJ,NOMS,25/01/2013,Gas,Lancaster Farms,CORONA ENERGY RETAIL 4 LTD,4785484,"40,701.17",Gas utility costs
MOJ,NOMS,25/01/2013,Gas,Leeds,CORONA ENERGY RETAIL 4 LTD,4785484,"54,788.50",Gas utility costs
MOJ,NOMS,25/01/2013,Gas,Lindholme,CORONA ENERGY RETAIL 4 LTD,4785484,"49,141.13",Gas utility costs
MOJ,NOMS,25/01/2013,Gas,Littlehey,CORONA ENERGY RETAIL 4 LTD,4785484,"62,876.72",Gas utility costs
MOJ,NOMS,25/01/2013,Gas,Long Lartin,CORONA ENERGY RETAIL 4 LTD,4785484,"42,926.57",Gas utility costs
MOJ,NOMS,25/01/2013,Gas,Maidstone,CORONA ENERGY RETAIL 4 LTD,4785484,"43,326.64",Gas utility costs
MOJ,NOMS,25/01/2013,Gas,Manchester,CORONA ENERGY RETAIL 4 LTD,4785484,"52,731.84",Gas utility costs
MOJ,NOMS,25/01/2013,Gas,Moorland,CORONA ENERGY RETAIL 4 LTD,4785484,"55,407.73",Gas utility costs
MOJ,NOMS,25/01/2013,Gas,Mount (The),CORONA ENERGY RETAIL 4 LTD,4785484,"45,092.92",Gas utility costs
MOJ,NOMS,25/01/2013,Gas,New Hall,CORONA ENERGY RETAIL 4 LTD,4785484,"44,164.12",Gas utility costs
MOJ,NOMS,25/01/2013,Gas,Nottingham,CORONA ENERGY RETAIL 4 LTD,4785484,"33,550.14",Gas utility costs
MOJ,NOMS,25/01/2013,Gas,Onley,CORONA ENERGY RETAIL 4 LTD,4785484,"51,020.38",Gas utility costs
MOJ,NOMS,25/01/2013,Gas,Pentonville,CORONA ENERGY RETAIL 4 LTD,4785484,"54,001.30",Gas utility costs
MOJ,NOMS,25/01/2013,Gas,Portland,CORONA ENERGY RETAIL 4 LTD,4785484,"31,698.62",Gas utility costs
MOJ,NOMS,25/01/2013,Gas,Ranby,CORONA ENERGY RETAIL 4 LTD,4785484,"49,467.54",Gas utility costs
MOJ,NOMS,25/01/2013,Gas,Rochester,CORONA ENERGY RETAIL 4 LTD,4785484,"41,925.37",Gas utility costs
MOJ,NOMS,25/01/2013,Gas,Send,CORONA ENERGY RETAIL 4 LTD,4785484,"40,982.16",Gas utility costs
MOJ,NOMS,25/01/2013,Gas,Sheppey Clustered Services,CORONA ENERGY RETAIL 4 LTD,4785484,"150,558.04",Gas utility costs
MOJ,NOMS,25/01/2013,Gas,Stafford,CORONA ENERGY RETAIL 4 LTD,4785484,"-62,186.36",Gas utility costs
MOJ,NOMS,25/01/2013,Gas,Stoke Heath,CORONA ENERGY RETAIL 4 LTD,4785484,"44,869.84",Gas utility costs
MOJ,NOMS,25/01/2013,Gas,Styal,CORONA ENERGY RETAIL 4 LTD,4785484,"38,813.92",Gas utility costs
MOJ,NOMS,25/01/2013,Gas,Verne (The),CORONA ENERGY RETAIL 4 LTD,4785484,"48,396.68",Gas utility costs
MOJ,NOMS,25/01/2013,Gas,Wakefield,CORONA ENERGY RETAIL 4 LTD,4785484,"37,949.60",Gas utility costs
MOJ,NOMS,25/01/2013,Gas,Wandsworth,CORONA ENERGY RETAIL 4 LTD,4785484,"87,113.28",Gas utility costs
MOJ,NOMS,25/01/2013,Gas,Whatton,CORONA ENERGY RETAIL 4 LTD,4785484,"-52,273.22",Gas utility costs
MOJ,NOMS,25/01/2013,Gas,Whitemoor,CORONA ENERGY RETAIL 4 LTD,4785484,"39,762.96",Gas utility costs
MOJ,NOMS,25/01/2013,Gas,Winchester,CORONA ENERGY RETAIL 4 LTD,4785484,"29,910.20",Gas utility costs
MOJ,NOMS,25/01/2013,Gas,Woodhill,CORONA ENERGY RETAIL 4 LTD,4785484,"50,494.52",Gas utility costs
MOJ,NOMS,25/01/2013,Gas,Wormwood Scrubs,CORONA ENERGY RETAIL 4 LTD,4785484,"49,829.99",Gas utility costs
MOJ,NOMS,25/01/2013,Gas,Wymott,CORONA ENERGY RETAIL 4 LTD,4785484,"32,885.44",Gas utility costs
MOJ,NOMS,08/01/2013,Resource Grants / Grant-in-Aid,Commercial Development Group,PRISONERS ABROAD,4766481,"62,500.00",Grant payments to voluntary and community sector organisations
MOJ,NOMS,17/01/2013,Resource Grants / Grant-in-Aid,Commercial Development Group,SOVA,4769419,"42,066.75",Grant payments to voluntary and community sector organisations
MOJ,NOMS,24/01/2013,Resource Grants / Grant-in-Aid,Commercial Development Group,LOCALITY,4791396,"30,000.00",Grant payments to voluntary and community sector organisations
MOJ,NOMS,23/01/2013,Probation - Approved premises,Voluntary Approved Premises,RIPON HOUSE,4785555,"82,750.00",Grant to voluntary approved probation premises
MOJ,NOMS,23/01/2013,Probation - Approved premises,Voluntary Approved Premises,WEST LONDON MISSION REF KATHERINE HUGHES HOUSE,4785559,"79,000.00",Grant to voluntary approved probation premises
MOJ,NOMS,23/01/2013,Probation - Approved premises,Voluntary Approved Premises,ST JOHN'S APPROVED PREMISES,4785558,"78,333.33",Grant to voluntary approved probation premises
MOJ,NOMS,23/01/2013,Probation - Approved premises,Voluntary Approved Premises,ADELAIDE HOUSE,4785549,"77,833.33",Grant to voluntary approved probation premises
MOJ,NOMS,23/01/2013,Probation - Approved premises,Voluntary Approved Premises,ST VINCENT DE PAUL SOCIETY REF OZANAM HOUSE,4785556,"77,083.33",Grant to voluntary approved probation premises
MOJ,NOMS,23/01/2013,Probation - Approved premises,Voluntary Approved Premises,CARDIGAN HOUSE APPROVED PREMISE,4785551,"76,916.67",Grant to voluntary approved probation premises
MOJ,NOMS,23/01/2013,Probation - Approved premises,Voluntary Approved Premises,ST VINCENT DE PAUL SOCIETY REF ST CHRISTOPHERS,4785557,"72,833.33",Grant to voluntary approved probation premises
MOJ,NOMS,23/01/2013,Probation - Approved premises,Voluntary Approved Premises,HESTIA HOUSING SUPPORT CO LTD REF BATTERSEA & STREATHAM,4785554,"58,416.67",Grant to voluntary approved probation premises
MOJ,NOMS,23/01/2013,Probation - Approved premises,Voluntary Approved Premises,ELIZABETH FRY APPROVED PREMISES,4785552,"57,916.67",Grant to voluntary approved probation premises
MOJ,NOMS,23/01/2013,Probation - Approved premises,Voluntary Approved Premises,ASHLEY HOUSE,4785550,"50,250.00",Grant to voluntary approved probation premises
MOJ,NOMS,23/01/2013,Probation - Approved premises,Voluntary Approved Premises,HESTIA HOUSING SUPPORT CO LTD REF BATTERSEA & STREATHAM,4785553,"48,250.00",Grant to voluntary approved probation premises
MOJ,NOMS,25/01/2013,Probation - Approved premises,Offender Management and Public Protection Group,LANGLEY HOUSE TRUST,4791578,"118,850.00",Grant to voluntary approved probation premises
MOJ,NOMS,04/01/2013,Contracted-out Medical services,Whitemoor,CAMBRIDGESHIRE & PETERBOROUGH NHS FOUNDATION TRUST,4764596,"126,031.37",Healthcare services in prison; amount is recovered from the local Primary Care Trust
MOJ,NOMS,29/01/2013,Contracted-out Medical services,Pentonville,WHITTINGTON HOSPITAL N H S TRUST,4795490,"46,500.00",Healthcare services in prison; amount is recovered from the local Primary Care Trust
MOJ,NOMS,09/01/2013,Contracted-out Other Services,Blundeston,COFATHEC ENERGY SERVICES UK LTD,4769808,"55,366.00",Heat Energy Services
MOJ,NOMS,09/01/2013,Contracted-out Other Services,Chelmsford,COFATHEC ENERGY SERVICES UK LTD,4768183,"76,815.06",Heat Energy Services
MOJ,NOMS,09/01/2013,Contracted-out Other Services,Deerbolt,COFATHEC ENERGY SERVICES UK LTD,4769807,"58,655.21",Heat Energy Services
MOJ,NOMS,09/01/2013,Contracted-out Other Services,Isle of Wight,COFATHEC ENERGY SERVICES UK LTD,4771108,"84,750.31",Heat Energy Services
MOJ,NOMS,09/01/2013,Contracted-out Other Services,Isle of Wight,COFATHEC ENERGY SERVICES UK LTD,4768184,"51,252.14",Heat Energy Services
MOJ,NOMS,09/01/2013,Contracted-out Other Services,Usk,COFATHEC ENERGY SERVICES UK LTD,4769806,"27,973.97",Heat Energy Services
MOJ,NOMS,10/01/2013,Contracted-out Other Services,Dartmoor,COFATHEC ENERGY SERVICES UK LTD,4729853,"73,531.27",Heat Energy Services
MOJ,NOMS,10/01/2013,Contracted-out Other Services,Dartmoor,COFATHEC ENERGY SERVICES UK LTD,4684986,"61,790.01",Heat Energy Services
MOJ,NOMS,02/01/2013,Contract IT Maintenance,MoJ ICT,MINISTRY OF JUSTICE,4725120,"724,563.58",IT maintenance and support
MOJ,NOMS,03/01/2013,Contract IT Maintenance,MoJ ICT,STERIA LTD,4752202,"399,576.87",IT maintenance and support
MOJ,NOMS,03/01/2013,Contract IT Maintenance,MoJ ICT,STERIA LTD,4752201,"33,123.82",IT maintenance and support
MOJ,NOMS,03/01/2013,Contract IT Maintenance,NOMS ICT,HP ENTERPRISE SERVICES UK LTD,4755077,"28,342.00",IT maintenance and support
MOJ,NOMS,03/01/2013,Miscellaneous,Norwich,PC SOLUTIONS & SUPPORT LTD,4722455,"25,100.40",IT maintenance and support
MOJ,NOMS,04/01/2013,Contract IT Maintenance,MoJ ICT,MINISTRY OF JUSTICE,4725119,"3,470,831.90",IT maintenance and support
MOJ,NOMS,08/01/2013,Contract IT Maintenance,MOJ Shared Services NOMS Delivery,METHODS CONSULTING LTD,4745546,"91,281.50",IT maintenance and support
MOJ,NOMS,15/01/2013,Contract IT Maintenance,Isle of Wight,HP ENTERPRISE SERVICES UK LTD,4757520,"66,701.49",IT maintenance and support
MOJ,NOMS,15/01/2013,Contract IT Maintenance,NOMS ICT,STERIA LTD,4752567,"46,333.34",IT maintenance and support
MOJ,NOMS,16/01/2013,Contract IT Maintenance,MOJ Project & ATOS,HP ENTERPRISE SERVICES UK LTD,4780392,"74,644.48",IT maintenance and support
MOJ,NOMS,16/01/2013,Contract IT Maintenance,MOJ Shared Services NOMS Delivery,HP ENTERPRISE SERVICES UK LTD,4780392,"894,762.38",IT maintenance and support
MOJ,NOMS,22/01/2013,Contract IT Maintenance,MOJ Shared Services NOMS Delivery,METHODS CONSULTING LTD,4779495,"62,281.39",IT maintenance and support
MOJ,NOMS,24/01/2013,Contract IT Maintenance,NOMS ICT,MINISTRY OF JUSTICE,4790861,"76,404.00",IT maintenance and support
MOJ,NOMS,25/01/2013,Contract IT Maintenance,HOPS Payroll Charge,LOGICA CMG (UK) LTD,4777783,"41,863.59",IT maintenance and support
MOJ,NOMS,29/01/2013,Contract IT Maintenance,MOJ Shared Services NOMS Delivery,PROCSERVE SHARED SERVICES LTD,4796660,"63,033.00",IT maintenance and support
MOJ,NOMS,30/01/2013,Contract IT Maintenance,HOPS Payroll Charge,LOGICA CMG (UK) LTD,4801627,"70,561.78",IT maintenance and support
MOJ,NOMS,28/01/2013,Legal Representation,MOJ Shared Services NOMS Delivery,TREASURY SOLICITORS,4793992,"931,525.63",Legal representation
MOJ,NOMS,08/01/2013,Contracted-out Library,Isle of Wight,ISLE OF WIGHT COUNCIL,4753622,"35,070.06",Library services 
MOJ,NOMS,09/01/2013,Contracted-out Library,Holme House,STOCKTON-ON-TEES BOROUGH COUNCIL,4770941,"90,000.00",Library services 
MOJ,NOMS,10/01/2013,Contracted-out Library,Exeter,DEVON COUNTY COUNCIL,4742761,"52,541.00",Library services 
MOJ,NOMS,15/01/2013,Contracted-out Library,Kirklevington Grange,STOCKTON-ON-TEES BOROUGH COUNCIL,4770943,"27,851.94",Library services 
MOJ,NOMS,16/01/2013,Contracted-out Library,Hewell,WORCESTERSHIRE COUNTY COUNCIL,4776665,"67,740.10",Library services 
MOJ,NOMS,16/01/2013,Contracted-out Library,Long Lartin,WORCESTERSHIRE COUNTY COUNCIL,4776164,"47,333.00",Library services 
MOJ,NOMS,23/01/2013,Contracted-out Library,Manchester,MANCHESTER CITY COUNCIL,4786289,"27,341.97",Library services 
MOJ,NOMS,25/01/2013,Contracted-out Library,Isle of Wight,ISLE OF WIGHT COUNCIL,4777170,"39,322.90",Library services 
MOJ,NOMS,02/01/2013,"New structural works, structural maintenance and equipment",Estates Capacity,WATES CONSTRUCTION LTD,4760756,"145,215.60",Major maintenance on prison estate
MOJ,NOMS,03/01/2013,"New structural works, structural maintenance and equipment",Estates Capacity,KIER CONSTRUCTION LTD,4742084,"144,445.20",Major maintenance on prison estate
MOJ,NOMS,03/01/2013,"New structural works, structural maintenance and equipment",Estates Capacity,KIER CONSTRUCTION LTD,4760907,"143,947.20",Major maintenance on prison estate
MOJ,NOMS,08/01/2013,"New structural works, structural maintenance and equipment",Estates Capacity,VINCI CONSTRUCTION UK LTD,4753601,"265,800.00",Major maintenance on prison estate
MOJ,NOMS,08/01/2013,"New structural works, structural maintenance and equipment",Estates Capacity,VINCI CONSTRUCTION UK LTD,4759078,"147,502.80",Major maintenance on prison estate
MOJ,NOMS,09/01/2013,"New structural works, structural maintenance and equipment",Estates Capacity,KIER CONSTRUCTION LTD,4761043,"103,825.09",Major maintenance on prison estate
MOJ,NOMS,10/01/2013,"New structural works, structural maintenance and equipment",Estates Capacity,VINCI CONSTRUCTION UK LTD,4772417,"260,415.60",Major maintenance on prison estate
MOJ,NOMS,10/01/2013,"New structural works, structural maintenance and equipment",Estates Capacity,WATES CONSTRUCTION LTD,4772283,"199,983.60",Major maintenance on prison estate
MOJ,NOMS,10/01/2013,Contracted-out Building Maintenance,Guys Marsh,DAVID R WHITE BUILDING SERVICES LTD,4772186,"40,898.30",Major maintenance on prison estate
MOJ,NOMS,10/01/2013,"New structural works, structural maintenance and equipment",Lancaster Farms,CROWN FLOORING LTD,4770322,"25,316.40",Major maintenance on prison estate
MOJ,NOMS,11/01/2013,Contracted-out Building Maintenance,Estates Capacity,HOME OFFICE,4774939,"27,276.62",Major maintenance on prison estate
MOJ,NOMS,11/01/2013,Contracted-out Plant and Equipment Maintenance,Security Group,CAPITA SECURE INFORMATION SOLUTIONS LTD,4770092,"91,507.38",Major maintenance on prison estate
MOJ,NOMS,14/01/2013,Contracted-out Building Maintenance,Estates Capacity,HOME OFFICE,4774940,"3,817,670.46",Major maintenance on prison estate
MOJ,NOMS,15/01/2013,"New structural works, structural maintenance and equipment",Durham,SMALLMAN & SON LTD,4777347,"42,808.80",Major maintenance on prison estate
MOJ,NOMS,15/01/2013,"New structural works, structural maintenance and equipment",Estates Capacity,VINCI CONSTRUCTION UK LTD,4777335,"246,000.00",Major maintenance on prison estate
MOJ,NOMS,15/01/2013,"New structural works, structural maintenance and equipment",Estates Capacity,GALLIFORD TRY CONSTRUCTION LTD,4777293,"195,759.60",Major maintenance on prison estate
MOJ,NOMS,17/01/2013,"New structural works, structural maintenance and equipment",Feltham,CUTTLE CONSTRUCTION LTD,4774136,"69,716.63",Major maintenance on prison estate
MOJ,NOMS,23/01/2013,Contracted-out Building Maintenance,Brixton,MITIE JUSTICE LTD,4748630,"90,677.94",Major maintenance on prison estate
MOJ,NOMS,23/01/2013,Contracted-out Building Maintenance,Brixton,MITIE JUSTICE LTD,4781063,"87,773.56",Major maintenance on prison estate
MOJ,NOMS,23/01/2013,Contracted-out Building Maintenance,Brixton,MITIE JUSTICE LTD,4780001,"45,186.37",Major maintenance on prison estate
MOJ,NOMS,23/01/2013,Contracted-out Building Maintenance,Brixton,MITIE JUSTICE LTD,4748203,"45,186.37",Major maintenance on prison estate
MOJ,NOMS,23/01/2013,"New structural works, structural maintenance and equipment",Estates Capacity,KIER CONSTRUCTION LTD,4761045,"123,600.00",Major maintenance on prison estate
MOJ,NOMS,23/01/2013,"New structural works, structural maintenance and equipment",Estates Capacity,HENRY BOOT CONSTRUCTION (U K) LTD,4785323,"117,204.00",Major maintenance on prison estate
MOJ,NOMS,23/01/2013,"New structural works, structural maintenance and equipment",Garth,SMALLMAN & SON LTD,4735063,"26,745.60",Major maintenance on prison estate
MOJ,NOMS,24/01/2013,Contracted-out Building Maintenance,Aylesbury,SILVERDELL,4791236,"48,000.00",Major maintenance on prison estate
MOJ,NOMS,28/01/2013,"New structural works, structural maintenance and equipment",DDC East of England,PRINCEBUILD,4791495,"54,707.50",Major maintenance on prison estate
MOJ,NOMS,30/01/2013,"New structural works, structural maintenance and equipment",Estates Capacity,KIER CONSTRUCTION LTD,4798131,"159,300.00",Major maintenance on prison estate
MOJ,NOMS,14/01/2013,Clothing,Prison Industries,CARPENTER LTD,9548118,"41,303.00",Mattresses for prisoners' beds
MOJ,NOMS,22/01/2013,Clothing,Prison Industries,CARPENTER LTD,9570794,"72,174.41",Mattresses for prisoners' beds
MOJ,NOMS,29/01/2013,Clothing,Prison Industries,CARPENTER LTD,9509492,"67,842.19",Mattresses for prisoners' beds
MOJ,NOMS,29/01/2013,Clothing,Prison Industries,CARPENTER LTD,9498030,"55,090.43",Mattresses for prisoners' beds
MOJ,NOMS,16/01/2013,Contracted-out Other Services,DDC North East,TEES ESK & WEAR VALLEYS NHS TRUST,4779975,"108,750.00",Mental healthcare support services
MOJ,NOMS,24/01/2013,General Maintenance Materials,Aylesbury,SILVERDELL,4768895,"32,678.40",Minor maintenance on prison estate
MOJ,NOMS,24/01/2013,General Maintenance Materials,Aylesbury,SILVERDELL,4791234,"-32,678.40",Minor maintenance on prison estate
MOJ,NOMS,11/01/2013,Occupational Health Services,ER and Reward Team,ATOS ORIGIN IT SERVICES UK LTD,4752363,"57,566.15",Occupational health services for staff
MOJ,NOMS,14/01/2013,Rates and Ground Rents,Estates Capacity,HOME OFFICE,4774941,"4,537,986.54","Payment of rents, business rates and council tax"
MOJ,NOMS,16/01/2013,Rates and Ground Rents,Estates Capacity,MERSEY CARE N H S TRUST,4757646,"757,121.50","Payment of rents, business rates and council tax"
MOJ,NOMS,28/01/2013,Rates and Ground Rents,Estates Capacity,GREENWICH COUNCIL,4625801,"104,204.00","Payment of rents, business rates and council tax"
MOJ,NOMS,04/01/2013,Payments to voluntary Organisations,DDC East of England,NACRO,4742265,"51,110.90",Payments to voluntary organisations
MOJ,NOMS,04/01/2013,Payments to voluntary Organisations,DDC East of England,NACRO,4742264,"44,848.00",Payments to voluntary organisations
MOJ,NOMS,16/01/2013,Payments to voluntary Organisations,Commercial Development Group,THE RCJ ADVICE BUREAU,4782203,"37,500.00",Payments to voluntary organisations
MOJ,NOMS,07/01/2013,Payroll Services,HOPS Payroll Charge,CABINET OFFICE,4764634,"665,148.12",Pension admin charges
MOJ,NOMS,08/01/2013,Drugs,Rochester,ALLIANCE HEALTHCARE,4767814,"37,642.23",Pharmaceutical items
MOJ,NOMS,17/01/2013,Drugs,Rochester,A A H PHARMACEUTICALS LTD,4782343,"50,488.53",Pharmaceutical items
MOJ,NOMS,17/01/2013,Drugs,Rochester,ALLIANCE HEALTHCARE,4782344,"32,281.34",Pharmaceutical items
MOJ,NOMS,02/01/2013,Plant and Machinery - Acquisitions,DDC East of England,TRAKA PLC,4752364,"52,420.63",Plant and Machinery
MOJ,NOMS,02/01/2013,Plant and Machinery - Acquisitions,DDC East of England,TRAKA PLC,4753958,"30,872.34",Plant and Machinery
MOJ,NOMS,08/01/2013,Plant and Machinery - Acquisitions,East Midland,TRAKA PLC,4731147,"29,563.06",Plant and Machinery
MOJ,NOMS,09/01/2013,Plant and Machinery - Acquisitions,Kirkham,J J SMITH & CO (WOODWORKING MACHINERY) LTD,4757413,"55,818.00",Plant and Machinery
MOJ,NOMS,10/01/2013,Plant and Machinery - Acquisitions,DDC East of England,TRAKA PLC,4753710,"37,450.14",Plant and Machinery
MOJ,NOMS,21/01/2013,Plant and Machinery - Acquisitions,TSS Kent and Sussex,TRAKA PLC,4761047,"78,404.08",Plant and Machinery
MOJ,NOMS,21/01/2013,Plant and Machinery - Acquisitions,TSS Kent and Sussex,TRAKA PLC,4761113,"61,744.68",Plant and Machinery
MOJ,NOMS,21/01/2013,Plant and Machinery - Acquisitions,TSS Kent and Sussex,TRAKA PLC,4761048,"38,469.30",Plant and Machinery
MOJ,NOMS,21/01/2013,Plant and Machinery - Acquisitions,TSS Kent and Sussex,TRAKA PLC,4761046,"34,898.83",Plant and Machinery
MOJ,NOMS,23/01/2013,Plant and Machinery - Acquisitions,TSS Kent and Sussex,TRAKA PLC,4786626,"69,754.33",Plant and Machinery
MOJ,NOMS,23/01/2013,Plant and Machinery - Acquisitions,TSS Kent and Sussex,TRAKA PLC,4786168,"53,741.88",Plant and Machinery
MOJ,NOMS,31/01/2013,Plant and Machinery - Acquisitions,Operational Services and Interventions Group,FALCON FOODSERVICE EQUIPMENT,4802671,"74,032.80",Plant and Machinery
MOJ,NOMS,10/01/2013,Contracted-out Other Services,Security Group,CAPITA SECURE INFORMATION SOLUTIONS LTD,4754446,"47,786.21",Prison radio communications maintenance
MOJ,NOMS,10/01/2013,Contracted-out Other Services,Security Group,CAPITA SECURE INFORMATION SOLUTIONS LTD,4772403,"30,558.35",Prison radio communications maintenance
MOJ,NOMS,10/01/2013,Contracted-out Other Services,Security Group,CAPITA SECURE INFORMATION SOLUTIONS LTD,4771544,"-47,786.21",Prison radio communications maintenance
MOJ,NOMS,03/01/2013,Prison Shop Cost of Sales,ROM - North East,EXEL EUROPE1 LTD,4763993,"389,425.34",Prison shop purchases where items are paid for by prisoners from their own funds at no cost to the taxpayer
MOJ,NOMS,03/01/2013,Prison Shop Cost of Sales (No VAT),ROM - North East,EXEL EUROPE1 LTD,4763993,"216,622.83",Prison shop purchases where items are paid for by prisoners from their own funds at no cost to the taxpayer
MOJ,NOMS,10/01/2013,Prison Shop Cost of Sales,ROM - North East,EXEL EUROPE1 LTD,4769810,"338,339.81",Prison shop purchases where items are paid for by prisoners from their own funds at no cost to the taxpayer
MOJ,NOMS,10/01/2013,Prison Shop Cost of Sales (No VAT),ROM - North East,EXEL EUROPE1 LTD,4769810,"171,979.28",Prison shop purchases where items are paid for by prisoners from their own funds at no cost to the taxpayer
MOJ,NOMS,17/01/2013,Prison Shop Cost of Sales,ROM - North East,EXEL EUROPE1 LTD,4779614,"132,061.12",Prison shop purchases where items are paid for by prisoners from their own funds at no cost to the taxpayer
MOJ,NOMS,17/01/2013,Prison Shop Cost of Sales (No VAT),ROM - North East,EXEL EUROPE1 LTD,4779614,"271,607.70",Prison shop purchases where items are paid for by prisoners from their own funds at no cost to the taxpayer
MOJ,NOMS,23/01/2013,Prison Shop Cost of Sales,ROM - North East,EXEL EUROPE1 LTD,4787250,"382,859.15",Prison shop purchases where items are paid for by prisoners from their own funds at no cost to the taxpayer
MOJ,NOMS,23/01/2013,Prison Shop Cost of Sales (No VAT),ROM - North East,EXEL EUROPE1 LTD,4787250,"206,946.30",Prison shop purchases where items are paid for by prisoners from their own funds at no cost to the taxpayer
MOJ,NOMS,30/01/2013,Prison Shop Cost of Sales,ROM - North East,EXEL EUROPE1 LTD,4797731,"339,731.19",Prison shop purchases where items are paid for by prisoners from their own funds at no cost to the taxpayer
MOJ,NOMS,30/01/2013,Prison Shop Cost of Sales (No VAT),ROM - North East,EXEL EUROPE1 LTD,4797731,"168,347.81",Prison shop purchases where items are paid for by prisoners from their own funds at no cost to the taxpayer
MOJ,NOMS,23/01/2013,Contracted-out Prison Shop,ROM - North East,EXEL EUROPE1 LTD,4787711,"1,157,813.00",Prison shops where items are paid for by prisoners from their own funds at no cost to the taxpayer
MOJ,NOMS,08/01/2013,Contracted-out Other Services,Bail Accommodation Support Services,HOME GROUP LTD (STONHAM),4762137,"645,789.88",Prisoner accommodation services
MOJ,NOMS,09/01/2013,Contracted-out Escorts,Prisoner Escort & Custody Service (PECS),GEO AMEY PECS LTD,4767526,"2,848,304.94",Prisoner escort services 
MOJ,NOMS,14/01/2013,Contracted-out Escorts,Prisoner Escort & Custody Service (PECS),GEO AMEY PECS LTD,4777728,"50,516.27",Prisoner escort services 
MOJ,NOMS,15/01/2013,Contracted-out Escorts,Prisoner Escort & Custody Service (PECS),GEO AMEY PECS LTD,4767525,"2,327,839.25",Prisoner escort services 
MOJ,NOMS,15/01/2013,Contracted-out Escorts,Prisoner Escort & Custody Service (PECS),GEO AMEY PECS LTD,4767527,"2,297,602.89",Prisoner escort services 
MOJ,NOMS,23/01/2013,Contracted-out Escorts,Prisoner Escort & Custody Service (PECS),SERCO LTD,4789865,"2,804,606.70",Prisoner escort services 
MOJ,NOMS,02/01/2013,Contracted-out operation of prisons and detention centres,Parc,BRIDGEND CUSTODIAL SERVICES LTD,4760353,"349,562.52",Prisons and detention centres operated by an external provider
MOJ,NOMS,02/01/2013,Contracted-out operation of prisons and detention centres,Parc,BRIDGEND CUSTODIAL SERVICES LTD,4760354,"336,810.15",Prisons and detention centres operated by an external provider
MOJ,NOMS,02/01/2013,Contracted-out operation of prisons and detention centres,Parc,BRIDGEND CUSTODIAL SERVICES LTD,4760355,"124,854.61",Prisons and detention centres operated by an external provider
MOJ,NOMS,02/01/2013,Contracted-out operation of prisons and detention centres,Parc,BRIDGEND CUSTODIAL SERVICES LTD,4760356,"36,205.85",Prisons and detention centres operated by an external provider
MOJ,NOMS,04/01/2013,Contracted-out operation of prisons and detention centres,Forest Bank,AGECROFT PRISON MANAGEMENT LTD,4766174,"38,958.27",Prisons and detention centres operated by an external provider
MOJ,NOMS,07/01/2013,Contracted-out operation of prisons and detention centres,Dovegate,MORETON PRISON SERVICES LTD,4766469,"64,357.17",Prisons and detention centres operated by an external provider
MOJ,NOMS,07/01/2013,Contracted-out operation of prisons and detention centres,Lowdham Grange,LOWDHAM GRANGE PRISON SERVICES LTD,4766473,"41,721.12",Prisons and detention centres operated by an external provider
MOJ,NOMS,08/01/2013,Contracted-out operation of prisons and detention centres,Altcourse,FAZAKERLEY PRISON SERVICES LTD,4769321,"336,768.50",Prisons and detention centres operated by an external provider
MOJ,NOMS,08/01/2013,Contracted-out operation of prisons and detention centres,Bronzefield,ASHFORD PRISON SERVICES LTD,4770768,"33,576.76",Prisons and detention centres operated by an external provider
MOJ,NOMS,08/01/2013,Contracted-out operation of prisons and detention centres,Dovegate,MORETON PRISON SERVICES LTD,4766470,"71,953.79",Prisons and detention centres operated by an external provider
MOJ,NOMS,08/01/2013,Contracted-out operation of prisons and detention centres,Lowdham Grange,LOWDHAM GRANGE PRISON SERVICES LTD,4766403,"43,171.84",Prisons and detention centres operated by an external provider
MOJ,NOMS,08/01/2013,Contracted-out operation of prisons and detention centres,Parc,BRIDGEND CUSTODIAL SERVICES LTD,4760342,"1,207,230.34",Prisons and detention centres operated by an external provider
MOJ,NOMS,08/01/2013,Contracted-out operation of prisons and detention centres,Peterborough,PETERBOROUGH PRISON MANAGEMENT LTD,4770706,"42,065.76",Prisons and detention centres operated by an external provider
MOJ,NOMS,08/01/2013,Contracted-out operation of prisons and detention centres,Peterborough,PETERBOROUGH PRISON MANAGEMENT LTD,4770707,"39,552.00",Prisons and detention centres operated by an external provider
MOJ,NOMS,08/01/2013,Contracted-out operation of prisons and detention centres,Peterborough,PETERBOROUGH PRISON MANAGEMENT LTD,4729893,"38,422.39",Prisons and detention centres operated by an external provider
MOJ,NOMS,08/01/2013,Contracted-out operation of prisons and detention centres,Peterborough,PETERBOROUGH PRISON MANAGEMENT LTD,4729775,"28,051.73",Prisons and detention centres operated by an external provider
MOJ,NOMS,08/01/2013,Contracted-out operation of prisons and detention centres,Peterborough,PETERBOROUGH PRISON MANAGEMENT LTD,4729815,"-106,228.03",Prisons and detention centres operated by an external provider
MOJ,NOMS,08/01/2013,Contracted-out operation of prisons and detention centres,Rye Hill,ONLEY PRISON SERVICES LTD,4769760,"1,583,134.12",Prisons and detention centres operated by an external provider
MOJ,NOMS,08/01/2013,Contracted-out operation of prisons and detention centres,Rye Hill,ONLEY PRISON SERVICES LTD,4768742,"38,034.75",Prisons and detention centres operated by an external provider
MOJ,NOMS,09/01/2013,Contracted-out operation of prisons and detention centres,Altcourse,FAZAKERLEY PRISON SERVICES LTD,4769323,"31,827.44",Prisons and detention centres operated by an external provider
MOJ,NOMS,09/01/2013,Contracted-out operation of prisons and detention centres,Bronzefield,ASHFORD PRISON SERVICES LTD,4770770,"57,750.84",Prisons and detention centres operated by an external provider
MOJ,NOMS,09/01/2013,Contracted-out operation of prisons and detention centres,Bronzefield,ASHFORD PRISON SERVICES LTD,4769796,"-33,189.74",Prisons and detention centres operated by an external provider
MOJ,NOMS,09/01/2013,Contracted-out operation of prisons and detention centres,Dovegate,MORETON PRISON SERVICES LTD,4766401,"637,135.67",Prisons and detention centres operated by an external provider
MOJ,NOMS,09/01/2013,Contracted-out operation of prisons and detention centres,Peterborough,PETERBOROUGH PRISON MANAGEMENT LTD,4769785,"39,703.13",Prisons and detention centres operated by an external provider
MOJ,NOMS,09/01/2013,Contracted-out operation of prisons and detention centres,Peterborough,PETERBOROUGH PRISON MANAGEMENT LTD,4770701,"28,051.73",Prisons and detention centres operated by an external provider
MOJ,NOMS,09/01/2013,Contracted-out operation of prisons and detention centres,Peterborough,PETERBOROUGH PRISON MANAGEMENT LTD,4769783,"27,623.33",Prisons and detention centres operated by an external provider
MOJ,NOMS,11/01/2013,Contracted-out operation of prisons and detention centres,Altcourse,FAZAKERLEY PRISON SERVICES LTD,4769320,"3,603,303.60",Prisons and detention centres operated by an external provider
MOJ,NOMS,11/01/2013,Contracted-out operation of prisons and detention centres,Altcourse,FAZAKERLEY PRISON SERVICES LTD,4770792,"-80,967.38",Prisons and detention centres operated by an external provider
MOJ,NOMS,11/01/2013,Contracted-out operation of prisons and detention centres,Ashfield,PUCKLECHURCH CUSTODIAL SERVICES LTD,4766400,"2,380,548.01",Prisons and detention centres operated by an external provider
MOJ,NOMS,11/01/2013,Contracted-out operation of prisons and detention centres,Bronzefield,ASHFORD PRISON SERVICES LTD,4770774,"2,468,797.09",Prisons and detention centres operated by an external provider
MOJ,NOMS,11/01/2013,Contracted-out operation of prisons and detention centres,Bronzefield,ASHFORD PRISON SERVICES LTD,4770772,"-95,831.23",Prisons and detention centres operated by an external provider
MOJ,NOMS,11/01/2013,Contracted-out operation of prisons and detention centres,Dovegate,MORETON PRISON SERVICES LTD,4766402,"2,585,488.30",Prisons and detention centres operated by an external provider
MOJ,NOMS,11/01/2013,Contracted-out operation of prisons and detention centres,Forest Bank,AGECROFT PRISON MANAGEMENT LTD,4765760,"2,979,620.38",Prisons and detention centres operated by an external provider
MOJ,NOMS,11/01/2013,Contracted-out operation of prisons and detention centres,G4S Birmingham,G4S CARE & JUSTICE SERVICES LTD,4768474,"2,399,545.92",Prisons and detention centres operated by an external provider
MOJ,NOMS,11/01/2013,Contracted-out operation of prisons and detention centres,Lowdham Grange,LOWDHAM GRANGE PRISON SERVICES LTD,4766404,"2,282,314.12",Prisons and detention centres operated by an external provider
MOJ,NOMS,11/01/2013,Contracted-out operation of prisons and detention centres,Oakwood,G4S CARE & JUSTICE SERVICES LTD,4767118,"2,196,453.28",Prisons and detention centres operated by an external provider
MOJ,NOMS,11/01/2013,Contracted-out operation of prisons and detention centres,Parc,BRIDGEND CUSTODIAL SERVICES LTD,4760341,"2,947,407.59",Prisons and detention centres operated by an external provider
MOJ,NOMS,11/01/2013,Contracted-out operation of prisons and detention centres,Peterborough,PETERBOROUGH PRISON MANAGEMENT LTD,4769795,"1,430,064.41",Prisons and detention centres operated by an external provider
MOJ,NOMS,11/01/2013,Contracted-out operation of prisons and detention centres,Peterborough,PETERBOROUGH PRISON MANAGEMENT LTD,4769784,"1,270,672.95",Prisons and detention centres operated by an external provider
MOJ,NOMS,11/01/2013,Contracted-out operation of prisons and detention centres,Peterborough,PETERBOROUGH PRISON MANAGEMENT LTD,4770698,"-109,768.96",Prisons and detention centres operated by an external provider
MOJ,NOMS,11/01/2013,Contracted-out operation of prisons and detention centres,Thameside,BWP PROJECT SERVICES LTD,4766465,"2,360,573.46",Prisons and detention centres operated by an external provider
MOJ,NOMS,14/01/2013,Contracted-out operation of prisons and detention centres,Parc,BRIDGEND CUSTODIAL SERVICES LTD,4776501,"105,677.25",Prisons and detention centres operated by an external provider
MOJ,NOMS,14/01/2013,Contracted-out operation of prisons and detention centres,Parc,BRIDGEND CUSTODIAL SERVICES LTD,4776410,"34,779.15",Prisons and detention centres operated by an external provider
MOJ,NOMS,23/01/2013,Contracted-out operation of prisons and detention centres,Wolds,G4S CARE & JUSTICE SERVICES LTD,4786903,"734,228.18",Prisons and detention centres operated by an external provider
MOJ,NOMS,02/01/2013,Contracted-out Probation Trusts,Cambridgeshire Probation Trust,CAMBRIDGESHIRE & PETERBOROUGH PROBATION TRUST,4761714,"958,333.33",Probation services
MOJ,NOMS,03/01/2013,Contracted-out Probation Trusts,Essex Probation Trust,ESSEX PROBATION TRUST,4763198,"1,750,000.00",Probation services
MOJ,NOMS,03/01/2013,Contracted-out Probation Trusts,Preston,LANCASHIRE PROBATION TRUST,4764000,"32,735.32",Probation services
MOJ,NOMS,03/01/2013,Contracted-out Probation Trusts,Preston,LANCASHIRE PROBATION TRUST,4736185,"31,283.15",Probation services
MOJ,NOMS,03/01/2013,Contracted-out Probation Trusts,Usk,WALES PROBATION TRUST,4762695,"29,193.54",Probation services
MOJ,NOMS,04/01/2013,Contracted-out Probation Trusts,Lincolnshire Probation Trust,LINCOLNSHIRE PROBATION TRUST,4764471,"729,559.83",Probation services
MOJ,NOMS,07/01/2013,Contracted-out Probation Trusts,Greater Manchester Probation Trust,GREATER MANCHESTER PROBATION TRUST,4765374,"3,917,894.00",Probation services
MOJ,NOMS,07/01/2013,Contracted-out Probation Trusts,Highdown,SURREY & SUSSEX PROBATION TRUST,4767583,"110,165.06",Probation services
MOJ,NOMS,07/01/2013,Contracted-out Probation Trusts,Staffordshire & West Midlands Probation Trust,STAFFORDSHIRE & WEST MIDLANDS PROBATION TRUST,4765378,"7,100,000.00",Probation services
MOJ,NOMS,08/01/2013,Contracted-out Probation Trusts,Avon and Somerset Probation Trust,AVON AND SOMERSET PROBATION TRUST,4767179,"2,413,943.00",Probation services
MOJ,NOMS,08/01/2013,Contracted-out Probation Trusts,Lewes,SURREY & SUSSEX PROBATION TRUST,4767584,"68,106.09",Probation services
MOJ,NOMS,08/01/2013,Contracted-out Probation Trusts,South Yorkshire Probation Trust,SOUTH YORKSHIRE PROBATION TRUST,4766853,"1,950,000.00",Probation services
MOJ,NOMS,08/01/2013,Contracted-out Probation Trusts,Thames Valley Probation Trust,THAMES VALLEY PROBATION TRUST,4767699,"2,040,574.50",Probation services
MOJ,NOMS,09/01/2013,Contracted-out Probation Trusts,Hampshire Probation Trust,HAMPSHIRE PROBATION TRUST,4768677,"1,954,278.00",Probation services
MOJ,NOMS,09/01/2013,Contracted-out Probation Trusts,Isle of Wight,HAMPSHIRE PROBATION TRUST,4768977,"39,044.96",Probation services
MOJ,NOMS,10/01/2013,Contracted-out Probation Trusts,Bullingdon,THAMES VALLEY PROBATION TRUST,4772262,"29,683.33",Probation services
MOJ,NOMS,10/01/2013,Contracted-out Probation Trusts,Durham,DURHAM TEES VALLEY PROBATION TRUST,4769866,"37,003.64",Probation services
MOJ,NOMS,10/01/2013,Contracted-out Probation Trusts,Haverigg,CUMBRIA PROBATION TRUST,4769012,"32,410.36",Probation services
MOJ,NOMS,10/01/2013,Contracted-out Probation Trusts,Hertfordshire Probation Trust,HERTFORDSHIRE PROBATION TRUST,4771382,"1,500,000.00",Probation services
MOJ,NOMS,10/01/2013,Contracted-out Probation Trusts,Hull,HUMBERSIDE PROBATION TRUST,4769907,"29,616.35",Probation services
MOJ,NOMS,10/01/2013,Contracted-out Probation Trusts,Humberside Probation Trust,HUMBERSIDE PROBATION TRUST,4770217,"1,701,274.48",Probation services
MOJ,NOMS,10/01/2013,Contracted-out Probation Trusts,Nottingham,NOTTINGHAMSHIRE PROBATION TRUST,4772402,"32,225.88",Probation services
MOJ,NOMS,10/01/2013,Contracted-out Probation Trusts,Whatton,NOTTINGHAMSHIRE PROBATION TRUST,4772404,"35,806.16",Probation services
MOJ,NOMS,11/01/2013,Contracted-out Probation Trusts,Channings Wood,DEVON & CORNWALL PROBATION TRUST,4773156,"25,002.51",Probation services
MOJ,NOMS,11/01/2013,Contracted-out Probation Trusts,Kennet,MERSEYSIDE PROBATION TRUST,4773511,"41,292.95",Probation services
MOJ,NOMS,11/01/2013,Contracted-out Probation Trusts,Kennet,MERSEYSIDE PROBATION TRUST,4773512,"38,907.84",Probation services
MOJ,NOMS,11/01/2013,Contracted-out Probation Trusts,Liverpool,MERSEYSIDE PROBATION TRUST,4773771,"89,979.56",Probation services
MOJ,NOMS,11/01/2013,Contracted-out Probation Trusts,Surrey & Sussex Probation Trust,SURREY & SUSSEX PROBATION TRUST,4769909,"2,459,508.00",Probation services
MOJ,NOMS,14/01/2013,Contracted-out Probation Boards,Bristol,AVON AND SOMERSET PROBATION TRUST,4774497,"63,208.30",Probation services
MOJ,NOMS,14/01/2013,Contracted-out Probation Trusts,Cumbria Probation Trust,CUMBRIA PROBATION TRUST,4773957,"665,000.00",Probation services
MOJ,NOMS,14/01/2013,Contracted-out Probation Trusts,Gloucestershire Probation Trust,GLOUCESTERSHIRE PROBATION TRUST,4774992,"800,000.00",Probation services
MOJ,NOMS,14/01/2013,Contracted-out Probation Trusts,Isle of Wight,HAMPSHIRE PROBATION TRUST,4774759,"39,089.38",Probation services
MOJ,NOMS,14/01/2013,Contracted-out Probation Trusts,London Probation Trust,LONDON PROBATION TRUST,4775157,"10,625,000.00",Probation services
MOJ,NOMS,15/01/2013,Contracted-out Probation Boards,Belmarsh,LONDON PROBATION TRUST,4777372,"25,890.63",Probation services
MOJ,NOMS,15/01/2013,Contracted-out Probation Trusts,Brixton,LONDON PROBATION TRUST,4777375,"29,995.19",Probation services
MOJ,NOMS,15/01/2013,Contracted-out Probation Trusts,Lindholme,SOUTH YORKSHIRE PROBATION TRUST,4777520,"33,677.75",Probation services
MOJ,NOMS,15/01/2013,Contracted-out Probation Boards,Moorland,SOUTH YORKSHIRE PROBATION TRUST,4777521,"26,998.14",Probation services
MOJ,NOMS,15/01/2013,Contracted-out Probation Trusts,Wormwood Scrubs,LONDON PROBATION TRUST,4776327,"31,378.43",Probation services
MOJ,NOMS,16/01/2013,Contracted-out Probation Trusts,Bure,NORFOLK & SUFFOLK PROBATION TRUST,4776804,"25,808.13",Probation services
MOJ,NOMS,16/01/2013,Contracted-out Probation Trusts,Coldingley,SURREY & SUSSEX PROBATION TRUST,4777589,"34,278.55",Probation services
MOJ,NOMS,16/01/2013,Contracted-out Probation Trusts,Downview,SURREY & SUSSEX PROBATION TRUST,4777592,"34,347.12",Probation services
MOJ,NOMS,16/01/2013,Contracted-out Probation Trusts,Ford,SURREY & SUSSEX PROBATION TRUST,4777590,"38,280.25",Probation services
MOJ,NOMS,16/01/2013,Contracted-out Probation Trusts,Leyhill,AVON AND SOMERSET PROBATION TRUST,4779307,"104,201.19",Probation services
MOJ,NOMS,16/01/2013,Contracted-out Probation Trusts,Norwich,NORFOLK & SUFFOLK PROBATION TRUST,4775919,"27,266.30",Probation services
MOJ,NOMS,16/01/2013,Contracted-out Probation Boards,Pentonville,LONDON PROBATION TRUST,4777373,"26,846.88",Probation services
MOJ,NOMS,16/01/2013,Contracted-out Probation Trusts,Send,SURREY & SUSSEX PROBATION TRUST,4777591,"40,056.28",Probation services
MOJ,NOMS,16/01/2013,Contracted-out Probation Trusts,Wandsworth,LONDON PROBATION TRUST,4777371,"28,631.95",Probation services
MOJ,NOMS,16/01/2013,Contracted-out Probation Trusts,Wayland,NORFOLK & SUFFOLK PROBATION TRUST,4776064,"25,678.35",Probation services
MOJ,NOMS,17/01/2013,Contracted-out Probation Boards,New Hall,WEST YORKSHIRE PROBATION TRUST,4781895,"48,564.69",Probation services
MOJ,NOMS,17/01/2013,Contracted-out Probation Boards,Wakefield,WEST YORKSHIRE PROBATION TRUST,4783912,"28,212.43",Probation services
MOJ,NOMS,21/01/2013,Contracted-out Probation Trusts,Cambridgeshire Probation Trust,CAMBRIDGESHIRE & PETERBOROUGH PROBATION TRUST,4782194,"83,333.33",Probation services
MOJ,NOMS,21/01/2013,Contracted-out Probation Boards,Eastwood Park,AVON AND SOMERSET PROBATION TRUST,4781536,"52,223.29",Probation services
MOJ,NOMS,22/01/2013,Contracted-out Probation Trusts,Kent Probation Trust,KENT PROBATION TRUST,4783384,"666,666.67",Probation services
MOJ,NOMS,22/01/2013,Contracted-out Probation Boards,Sheppey Clustered Services,KENT PROBATION TRUST,4789279,"28,342.91",Probation services
MOJ,NOMS,23/01/2013,Contracted-out Probation Trusts,Highpoint,NORFOLK & SUFFOLK PROBATION TRUST,4776805,"47,486.28",Probation services
MOJ,NOMS,24/01/2013,Contracted-out Probation Trusts,Probation Trust Unit,SERCO LTD,4786620,"883,562.35",Probation services
MOJ,NOMS,25/01/2013,Contracted-out Probation Boards,Cardiff,WALES PROBATION TRUST,4792019,"50,724.30",Probation services
MOJ,NOMS,28/01/2013,Contracted-out Probation Trusts,Lancashire Probation Trust,LANCASHIRE PROBATION TRUST,4793961,"416,666.67",Probation services
MOJ,NOMS,28/01/2013,Contracted-out Probation Trusts,Operational Services and Interventions Group,MIDLANDS TRAINING CONSORTIUM C/O SWM PROBATION TRUST,4742751,"61,289.98",Probation services
MOJ,NOMS,29/01/2013,Contracted-out Probation Trusts,Erlestoke and Shepton Mallet,WILTSHIRE PROBATION TRUST,4795575,"27,124.36",Probation services
MOJ,NOMS,30/01/2013,Contracted-out Probation Trusts,Acklington,NORTHUMBRIA PROBATION TRUST,4799302,"26,588.29",Probation services
MOJ,NOMS,30/01/2013,Contracted-out Probation Trusts,Bedfordshire Probation Trust,BEDFORDSHIRE PROBATION TRUST,4799108,"749,698.99",Probation services
MOJ,NOMS,30/01/2013,Contracted-out Probation Trusts,Chelmsford,ESSEX PROBATION TRUST,4798773,"81,693.04",Probation services
MOJ,NOMS,30/01/2013,Contracted-out Probation Trusts,Cheshire Probation Trust,CHESHIRE PROBATION TRUST,4777579,"1,200,000.00",Probation services
MOJ,NOMS,30/01/2013,Contracted-out Probation Trusts,Devon and Cornwall Probation Trust,DEVON & CORNWALL PROBATION TRUST,4796548,"1,502,923.17",Probation services
MOJ,NOMS,30/01/2013,Contracted-out Probation Trusts,Dorset Probation Trust,DORSET PROBATION TRUST,4784760,"695,700.00",Probation services
MOJ,NOMS,30/01/2013,Contracted-out Probation Trusts,Kent Probation Trust,KENT PROBATION TRUST,4783384,"833,333.33",Probation services
MOJ,NOMS,30/01/2013,Contracted-out Probation Trusts,Lancashire Probation Trust,LANCASHIRE PROBATION TRUST,4793961,"1,583,333.33",Probation services
MOJ,NOMS,30/01/2013,Contracted-out Probation Trusts,Leicestershire Probation Trust,LEICESTERSHIRE&RUTLAND PROBATION TRUST,4792514,"1,145,016.70",Probation services
MOJ,NOMS,30/01/2013,Contracted-out Probation Trusts,Merseyside Probation Trust,MERSEYSIDE PROBATION TRUST,4785278,"4,000,000.00",Probation services
MOJ,NOMS,30/01/2013,Contracted-out Probation Trusts,Northamptonshire Probation Trust,NORTHAMPTONSHIRE PROBATION TRUST,4777413,"717,362.39",Probation services
MOJ,NOMS,30/01/2013,Contracted-out Probation Trusts,Northumbria Probation Trust,NORTHUMBRIA PROBATION TRUST,4795613,"2,100,061.00",Probation services
MOJ,NOMS,30/01/2013,Contracted-out Probation Trusts,Nottinghamshire Probation Trust,NOTTINGHAMSHIRE PROBATION TRUST,4795492,"1,400,000.00",Probation services
MOJ,NOMS,30/01/2013,Contracted-out Probation Trusts,Warwickshire Probation Trust,WARWICKSHIRE PROBATION TRUST,4796286,"700,000.00",Probation services
MOJ,NOMS,30/01/2013,Contracted-out Probation Trusts,Wiltshire Probation Trust,WILTSHIRE PROBATION TRUST,4785119,"572,676.58",Probation services
MOJ,NOMS,31/01/2013,Contracted-out Probation Trusts,West Yorkshire Probation Trust,WEST YORKSHIRE PROBATION TRUST,4799223,"3,300,000.00",Probation services
MOJ,NOMS,31/01/2013,Contracted-out Probation Trusts,York and North Yorkshire Probation Trust,YORK & NORTH YORKSHIRE PROBATION TRUST,4799224,"850,000.00",Probation services
MOJ,NOMS,03/01/2013,Professional Advice,Procurement Group,SIMMONS & SIMMONS,4730916,"29,172.50",Professional advice
MOJ,NOMS,04/01/2013,Professional Advice,Operational Services and Interventions Group,ROYAL COLLEGE OF PSYCHIATRISTS (THE),4554232,"75,000.00",Professional advice
MOJ,NOMS,14/01/2013,Professional Advice,NOMS CFO,THE CENTRE FOR ECONOMIC & SOCIAL INCLUSION,4752107,"67,351.94",Professional advice
MOJ,NOMS,17/01/2013,Professional Advice,Askham Grange,BARNARDO'S,4780226,"28,442.87",Professional advice
MOJ,NOMS,28/01/2013,Professional Advice,Procurement Group,BRIDGEND CUSTODIAL SERVICES LTD,4788704,"518,276.46",Professional advice
MOJ,NOMS,08/01/2013,WIP - Professional Fees,Estates Capacity,VINCI CONSTRUCTION UK LTD,4749119,"25,028.40",Professional fees in respect of construction work-in-progress
MOJ,NOMS,09/01/2013,WIP - Professional Fees,Estates Capacity,VINCI CONSTRUCTION UK LTD,4759219,"283,264.80",Professional fees in respect of construction work-in-progress
MOJ,NOMS,09/01/2013,WIP - Professional Fees,Estates Capacity,VINCI CONSTRUCTION UK LTD,4760992,"133,200.00",Professional fees in respect of construction work-in-progress
MOJ,NOMS,11/01/2013,WIP - Professional Fees,Estates Capacity,RIDER LEVETT BUCKNALL UK LTD,4773058,"29,909.27",Professional fees in respect of construction work-in-progress
MOJ,NOMS,17/01/2013,WIP - Professional Fees,Estates Capacity,AEDAS ARCHITECTS LTD,4784421,"35,853.48",Professional fees in respect of construction work-in-progress
MOJ,NOMS,17/01/2013,WIP - Professional Fees,Estates Capacity,FAITHFUL & GOULD,4779127,"26,809.90",Professional fees in respect of construction work-in-progress
MOJ,NOMS,21/01/2013,WIP - Professional Fees,Estates Capacity,INTERSERVE CONSTRUCTION LTD,4779117,"201,411.10",Professional fees in respect of construction work-in-progress
MOJ,NOMS,03/01/2013,VISA Costs,MOJ Shared Services NOMS Delivery,ALLSTAR BUSINESS SOLUTIONS LTD,4764649,"78,498.01",Purchase of motor fuel
MOJ,NOMS,08/01/2013,VISA Costs,MOJ Shared Services NOMS Delivery,ALLSTAR BUSINESS SOLUTIONS LTD,4767768,"92,918.83",Purchase of motor fuel
MOJ,NOMS,02/01/2013,Accruals - Goods & services,MOJ Shared Services NOMS Delivery,J P MORGAN EUROPE LTD,4764639,"2,781,807.68",Purchases via Government Procurement Card (GPC)
MOJ,NOMS,30/01/2013,Accruals - Goods & services,MOJ Shared Services NOMS Delivery,J P MORGAN EUROPE LTD,4801649,"1,635,670.42",Purchases via Government Procurement Card (GPC)
MOJ,NOMS,08/01/2013,Raw Materials Issued,Featherstone,L & P (PSCS),4749771,"31,782.48",Raw materials for prison industries
MOJ,NOMS,10/01/2013,Raw Materials - ESS/LBA Industries ,Offender Services Co Commissioning Group,T R LAWMAN LTD,4772143,"44,746.16",Raw materials for prison industries
MOJ,NOMS,17/01/2013,Raw Materials - ESS/LBA Industries ,Prison Industries,JIANGSU SAINTY CORP LTD,4780563,"59,400.00",Raw materials for prison industries
MOJ,NOMS,17/01/2013,Raw Materials - ESS/LBA Industries ,Prison Industries,JIANGSU SAINTY CORP LTD,4780452,"49,817.60",Raw materials for prison industries
MOJ,NOMS,17/01/2013,Raw Materials - ESS/LBA Industries ,Prison Industries,JIANGSU SAINTY CORP LTD,4780451,"43,008.00",Raw materials for prison industries
MOJ,NOMS,17/01/2013,Raw Materials - ESS/LBA Industries ,Prison Industries,JIANGSU SAINTY CORP LTD,4780449,"39,383.96",Raw materials for prison industries
MOJ,NOMS,17/01/2013,Raw Materials - ESS/LBA Industries ,Prison Industries,JIANGSU SAINTY CORP LTD,4780455,"38,577.00",Raw materials for prison industries
MOJ,NOMS,17/01/2013,Raw Materials - ESS/LBA Industries ,Prison Industries,JIANGSU SAINTY CORP LTD,4780454,"37,537.50",Raw materials for prison industries
MOJ,NOMS,17/01/2013,Clothing,Prison Industries,JIANGSU SAINTY CORP LTD,4780565,"28,875.00","Raw materials for prisoners to make clothing, bedding, towels etc"
MOJ,NOMS,29/01/2013,Recruitment,Organisational Development Group,HAMPSHIRE CONSTABULARY,4783807,"56,048.00",Recruitment of staff
MOJ,NOMS,11/01/2013,Contracted-out Other Services,Director of Finance Office,KNIGHT FRANK LLP,4728315,"54,900.00","Rent and service charge for Peat House, Leicester"
MOJ,NOMS,02/01/2013,Contracted-out Resettlement Services,ROM - North East,PRISON FELLOWSHIP ENGLAND & WALES,4523127,"37,500.00",Resettlement and community services for prisoners 
MOJ,NOMS,04/01/2013,Contracted-out Resettlement Services,Commercial Development Group,RAND EUROPE CAMBRIDGE LTD,4762239,"65,446.06",Resettlement and community services for prisoners 
MOJ,NOMS,09/01/2013,Contracted-out Resettlement Services,Stocken,KAINOS COMMUNITY,4772379,"26,953.00",Resettlement and community services for prisoners 
MOJ,NOMS,16/01/2013,Contracted-out Resettlement Services,Commissioning Strategies Group,PARTNERS OF PRISONERS & FAMILIES SUPPORT GROUP,4780088,"25,190.00",Resettlement and community services for prisoners 
MOJ,NOMS,17/01/2013,Contracted-out Resettlement Services,ROM - North East,PRISON FELLOWSHIP ENGLAND & WALES,4767398,"76,434.75",Resettlement and community services for prisoners 
MOJ,NOMS,23/01/2013,Contracted-out Resettlement Services,Commercial Development Group,LONDON BOROUGH OF LEWISHAM,4785454,"249,370.00",Resettlement and community services for prisoners 
MOJ,NOMS,24/01/2013,Contracted-out Resettlement Services,Swinfen Hall,NACRO,4787120,"209,997.92",Resettlement and community services for prisoners 
MOJ,NOMS,24/01/2013,Contracted-out Resettlement Services,Swinfen Hall,NACRO,4787118,"120,000.00",Resettlement and community services for prisoners 
MOJ,NOMS,25/01/2013,Contracted-out Resettlement Services,Preston,SHELTER,4791176,"26,591.53",Resettlement and community services for prisoners 
MOJ,NOMS,03/01/2013,Contracted-out Resettlement Services,NOMS CFO,WEST YORKSHIRE PROBATION TRUST,4754586,"112,639.10",Resettlement and community services for prisoners- amount is recovered from European Social Fund
MOJ,NOMS,04/01/2013,Contracted-out Resettlement Services,NOMS CFO,MERSEYSIDE PROBATION TRUST,4754530,"136,530.06",Resettlement and community services for prisoners- amount is recovered from European Social Fund
MOJ,NOMS,04/01/2013,Contracted-out Resettlement Services,NOMS CFO,MERSEYSIDE PROBATION TRUST,4754527,"101,331.75",Resettlement and community services for prisoners- amount is recovered from European Social Fund
MOJ,NOMS,04/01/2013,Contracted-out Resettlement Services,NOMS CFO,MERSEYSIDE PROBATION TRUST,4754528,"56,879.01",Resettlement and community services for prisoners- amount is recovered from European Social Fund
MOJ,NOMS,09/01/2013,Contracted-out Resettlement Services,NOMS CFO,TRIBAL EDUCATION LTD,4764955,"80,372.25",Resettlement and community services for prisoners- amount is recovered from European Social Fund
MOJ,NOMS,11/01/2013,Contracted-out Resettlement Services,NOMS CFO,PERTEMPS PEOPLE DEVELOPMENT GROUP,4774011,"160,478.88",Resettlement and community services for prisoners- amount is recovered from European Social Fund
MOJ,NOMS,11/01/2013,Contracted-out Resettlement Services,NOMS CFO,PERTEMPS PEOPLE DEVELOPMENT GROUP,4774010,"106,976.49",Resettlement and community services for prisoners- amount is recovered from European Social Fund
MOJ,NOMS,11/01/2013,Contracted-out Resettlement Services,NOMS CFO,SERCO LTD,4772576,"100,100.69",Resettlement and community services for prisoners- amount is recovered from European Social Fund
MOJ,NOMS,11/01/2013,Contracted-out Resettlement Services,NOMS CFO,SERCO LTD,4772575,"95,697.00",Resettlement and community services for prisoners- amount is recovered from European Social Fund
MOJ,NOMS,11/01/2013,Contracted-out Resettlement Services,NOMS CFO,BATES WELL & BRAITHWAITE LONDON LLP,4772571,"47,750.00",Resettlement and community services for prisoners- amount is recovered from European Social Fund
MOJ,NOMS,14/01/2013,Contracted-out Resettlement Services,NOMS CFO,PERTEMPS PEOPLE DEVELOPMENT GROUP,4774013,"29,442.25",Resettlement and community services for prisoners- amount is recovered from European Social Fund
MOJ,NOMS,25/01/2013,Contracted-out Resettlement Services,NOMS CFO,WORKING LINKS,4786083,"303,568.59",Resettlement and community services for prisoners- amount is recovered from European Social Fund
MOJ,NOMS,25/01/2013,Contracted-out Resettlement Services,NOMS CFO,WORKING LINKS,4786082,"303,568.59",Resettlement and community services for prisoners- amount is recovered from European Social Fund
MOJ,NOMS,28/01/2013,Contracted-out Resettlement Services,NOMS CFO,LEICESTERSHIRE&RUTLAND PROBATION TRUST,4773780,"97,240.50",Resettlement and community services for prisoners- amount is recovered from European Social Fund
MOJ,NOMS,29/01/2013,Contracted-out Resettlement Services,NOMS CFO,SOUTH YORKSHIRE PROBATION TRUST,4755738,"60,279.20",Resettlement and community services for prisoners- amount is recovered from European Social Fund
MOJ,NOMS,31/01/2013,Contracted-out Resettlement Services,NOMS CFO,TRIBAL EDUCATION LTD,4799470,"88,629.22",Resettlement and community services for prisoners- amount is recovered from European Social Fund
MOJ,NOMS,31/01/2013,Contracted-out Resettlement Services,NOMS CFO,MERSEYSIDE PROBATION TRUST,4802865,"57,111.90",Resettlement and community services for prisoners- amount is recovered from European Social Fund
MOJ,NOMS,17/01/2013,Contracted-out Security Services,Estates Capacity,S E S LTD,4783708,"28,583.88",Security guards used to protect property 
MOJ,NOMS,02/01/2013,Specialist Contractors,Organisational Restructure Programme,PARITY RESOURCES LTD,4744081,"131,482.13",Specialist contractors engaged under a fixed-term contract for services 
MOJ,NOMS,09/01/2013,Specialist Contractors,Business and Service Development Group,UNIVERSITY OF SHEFFIELD,4769035,"30,000.00",Specialist contractors engaged under a fixed-term contract for services 
MOJ,NOMS,10/01/2013,Specialist Contractors,Procurement Group,CAPITA RESOURCING LTD,4705960,"41,939.64",Specialist contractors engaged under a fixed-term contract for services 
MOJ,NOMS,29/01/2013,Contracted-out Other Services,Norwich,CARTUS LTD,4796984,"75,000.00",Staff relocation services
MOJ,NOMS,04/01/2013,Training and Further Education Courses,Learning and Development Group,CITY OF BRISTOL COLLEGE,4755808,"89,897.07",Staff training and further education courses
MOJ,NOMS,04/01/2013,Training and Further Education Courses,Learning and Development Group,CITY OF BRISTOL COLLEGE,4757090,"37,407.00",Staff training and further education courses
MOJ,NOMS,07/01/2013,Training and Further Education Courses,Learning and Development Group,CITY OF BRISTOL COLLEGE,4757089,"35,544.67",Staff training and further education courses
MOJ,NOMS,25/01/2013,Training and Further Education Courses,Learning and Development Group,LEEDS COLLEGE OF BUILDING,4738933,"63,862.95",Staff training and further education courses
MOJ,NOMS,03/01/2013,Stores,Procurement Group,JIANGSU SUNSHINE DONGSHENG IMP & EXP CO LTD,4715988,"30,943.90",Staff uniforms
MOJ,NOMS,24/01/2013,Stores,Procurement Group,JIANGSU SUNSHINE DONGSHENG IMP & EXP CO LTD,4748290,"489,851.96",Staff uniforms
MOJ,NOMS,24/01/2013,Stores,Procurement Group,JIANGSU SUNSHINE DONGSHENG IMP & EXP CO LTD,4748291,"135,919.97",Staff uniforms
MOJ,NOMS,24/01/2013,Stores,Procurement Group,JIANGSU SUNSHINE DONGSHENG IMP & EXP CO LTD,4748292,"60,620.98",Staff uniforms
MOJ,NOMS,28/01/2013,Stores,Procurement Group,JIANGSU SUNSHINE DONGSHENG IMP & EXP CO LTD,4716147,"30,867.10",Staff uniforms
MOJ,NOMS,04/01/2013,Travel - Non-Taxable,HOPS Payroll Charge,REDFERN TRAVEL,4764685,"480,832.88",Staff work related travel
MOJ,NOMS,30/01/2013,Travel - Non-Taxable,HOPS Payroll Charge,REDFERN TRAVEL,4801656,"653,613.17",Staff work related travel
MOJ,NOMS,11/01/2013,Contracted-out Visitor's Centres,Holme House,NEPACS,4773874,"25,674.00",Visitors' Centre facilities 
MOJ,NOMS,25/01/2013,Contracted-out Visitor's Centres,Acklington,NEPACS,4773876,"26,335.50",Visitors' Centre facilities 
MOJ,NOMS,25/01/2013,Contracted-out Visitor's Centres,Nottingham,PRISON ADVICE & CARE TRUST (P A C T),4780153,"35,842.75",Visitors' Centre facilities 
MOJ,NOMS,11/01/2013,Water and Sewage,Channings Wood,SOUTH WEST WATER LTD,4774116,"38,030.58",Water and sewage utility costs
MOJ,NOMS,11/01/2013,Water and Sewage,Wandsworth,THAMES WATER UTILITIES LTD,4774081,"26,257.98",Water and sewage utility costs
MOJ,NOMS,14/01/2013,Water and Sewage,Brixton,THAMES WATER UTILITIES LTD,4666042,"103,112.24",Water and sewage utility costs
MOJ,NOMS,14/01/2013,Water and Sewage,Brixton,THAMES WATER UTILITIES LTD,4775186,"-105,571.41",Water and sewage utility costs
MOJ,NOMS,14/01/2013,Water and Sewage,Wormwood Scrubs,THAMES WATER UTILITIES LTD,4775139,"26,534.82",Water and sewage utility costs
MOJ,NOMS,15/01/2013,Water and Sewage,G4S Birmingham,SEVERN TRENT WATER LTD,4731379,"56,765.45",Water and sewage utility costs
MOJ,NOMS,15/01/2013,Water and Sewage,G4S Birmingham,SEVERN TRENT WATER LTD,DM19OCT12/153/9400020081,"-64,022.51",Water and sewage utility costs
MOJ,NOMS,15/01/2013,Water and Sewage,Lindholme,YORKSHIRE WATER SERVICES LTD,4777744,"31,734.37",Water and sewage utility costs
MOJ,NOMS,17/01/2013,Water and Sewage,Nottingham,SEVERN TRENT WATER LTD,4780393,"27,227.66",Water and sewage utility costs
MOJ,NOMS,21/01/2013,Water and Sewage,Rochester,SOUTHERN WATER SERVICES LTD,4784585,"26,273.61",Water and sewage utility costs
MOJ,NOMS,21/01/2013,Water and Sewage,Sheppey Clustered Services,SOUTHERN WATER SERVICES LTD,4784553,"29,604.87",Water and sewage utility costs
MOJ,NOMS,24/01/2013,Water and Sewage,G4S Birmingham,SEVERN TRENT WATER LTD,4743143,"34,049.89",Water and sewage utility costs
MOJ,NOMS,24/01/2013,Water and Sewage,G4S Birmingham,SEVERN TRENT WATER LTD,DM07SEP12/008/3150070229,"-26,271.98",Water and sewage utility costs
MOJ,NOMS,28/01/2013,Water and Sewage,Garth,UNITED UTILITIES WATER PLC,4793974,"26,108.88",Water and sewage utility costs
MOJ,NOMS,28/01/2013,Water and Sewage,Isis,THAMES WATER UTILITIES LTD,4789375,"97,058.86",Water and sewage utility costs
MOJ,NOMS,28/01/2013,Water and Sewage,Reading,THAMES WATER UTILITIES LTD,4784546,"32,923.51",Water and sewage utility costs
MOJ,NOMS,29/01/2013,Water and Sewage,Kirkham,UNITED UTILITIES WATER PLC,4799858,"29,003.39",Water and sewage utility costs
MOJ,NOMS,30/01/2013,Water and Sewage,Liverpool,UNITED UTILITIES WATER PLC,4799866,"35,534.53",Water and sewage utility cost
